[Event "FIDE World Junior U20-ch Girls 2025"]
[Site "Petrovac"]
[Date "2025.03.03"]
[Round "7.29"]
[White "Huseynova, Lala"]
[Black "Nguyen Thien Ngan"]
[Result "0-1"]
[Annotator "NA COMBH"]
[ECO "C95"]
[WhiteElo "2032"]
[BlackElo "1923"]
[PlyCount "115"]
[EventDate "2025.02.23"]
[EventType "swiss"]
[EventCountry "MNE"]
[SourceTitle "playchess.com"]
[Source "ChessBase"]
[SourceQuality "1"]
[TimeControl "40/5400+30:1800+30"]

1. e4 {[%emt 0:00:02]} e5 {[%emt 0:00:06]} 2. Nf3 {[%emt 0:00:07]} Nc6 {[%emt 0:00:07]} 3. Bb5 {[%emt 0:00:06]} a6 {[%emt 0:00:05]} 4. Ba4 {[%emt 0:00:03]} Nf6 {[%emt 0:00:09]} 5. O-O {[%emt 0:00:08]} b5 {[%emt 0:00:13]} 6. Bb3 {[%emt 0:00:01]} Be7 {[%emt 0:00:11]} 7. Re1 {[%emt 0:00:16]} d6 {[%emt 0:00:07]} 8. c3 {[%emt 0:00:40]} O-O {[%emt 0:00:08]} 9. h3 {[%emt 0:00:04]} Nb8 {[%emt 0:00:18]} 10. d4 {[%emt 0:00:07]} Nbd7 {[%emt 0:00:06]} 11. Nbd2 {[%emt 0:00:40]} Bb7 {[%emt 0:00:51]} 12. Bc2 {[%emt 0:00:26]} Re8 {[%emt 0:00:12]} 13. Nf1 {[%emt 0:00:10]} Bf8 {[%emt 0:00:09]} 14. Ng3 {[%emt 0:00:13]} g6 {[%emt 0:00:13]} 15. Bg5 {[%emt 0:05:14]} h6 {[%emt 0:01:13]} 16. Bd2 {[%emt 0:01:48]} Bg7 {[%emt 0:04:22]} 17. a4 {[%emt 0:02:02]} exd4 {[%emt 0:05:53]} 18. cxd4 {[%emt 0:00:45]} c5 {[%emt 0:14:07]} 19. Bf4 {[%emt 0:11:15]} Qb6 {[%emt 0:11:38]} 20. a5 {[%emt 0:09:30]} Qc6 {[%emt 0:03:01]} 21. h4 {[%emt 0:04:40]} h5 {[%emt 0:17:14]} 22. Bb3 {[%emt 0:09:58]} c4 {[%emt 0:09:56]} 23. Bc2 {[%emt 0:00:36]} Rac8 {[%emt 0:10:18]} 24. Rc1 {[%emt 0:07:12]} Qc7 {[%emt 0:13:30]} 25. Qd2 {[%emt 0:04:32]} Ng4 {[%emt 0:01:02]} 26. Bb1 {[%emt 0:09:41]} Nb8 {[%emt 0:03:11]} 27. Ba2 {[%emt 0:15:53]} Nc6 {[%emt 0:00:44]} 28. d5 {[%emt 0:03:13]} Nce5 {[%emt 0:01:28]} 29. Nxe5 {[%emt 0:01:32]} Nxe5 {[%emt 0:01:01]} 30. Bb1 {[%emt 0:00:20]} Ng4 {[%emt 0:01:41]} 31. f3 {[%emt 0:01:06]} Ne5 {[%emt 0:00:50]} 32. Ne2 {[%emt 0:05:18]} Nd7 {[%emt 0:00:52]} 33. b4 {[%emt 0:02:35]} Ne5 {[%emt 0:01:12]} 34. Nc3 {[%emt 0:02:24]} Qe7 {[%emt 0:00:46]} 35. Bg5 {[%emt 0:00:16]} Bf6 {[%emt 0:00:32]} 36. f4 {[%emt 0:00:49]} Ng4 {[%emt 0:00:29]} 37. Ne2 {[%emt 0:01:57]} Qd7 {[%emt 0:00:23]} 38. Bxf6 {[%emt 0:00:18]} Nxf6 {[%emt 0:00:03]} 39. Qd4 {[%emt 0:00:29]} Qd8 {[%emt 0:00:58]} 40. Nc3 {[%emt 0:00:47]} Ng4 {[%emt 0:00:39]} 41. g3 {[%emt 0:30:22]} Rc7 {[%emt 0:06:34]} 42. Bc2 {[%emt 0:00:00]} Qf6 {[%emt 0:03:59]} 43. Qxf6 {[%emt 0:00:00]} Nxf6 {[%emt 0:00:06]} 44. Rcd1 {[%emt 0:00:00]} Rce7 {[%emt 0:00:40]} 45. Rd2 {[%emt 0:00:00]} Kf8 {[%emt 0:06:40]} 46. Kg2 {[%emt 0:00:00]} Ng4 {[%emt 0:03:53]} 47. Kf1 {[%emt 0:00:00]} f5 {[%emt 0:07:21]} 48. Rde2 {[%emt 0:00:00]} Kf7 {[%emt 0:00:58]} 49. Kg1 {[%emt 0:02:24]} Kf6 {[%emt 0:00:53]} 50. Kg2 {[%emt 0:00:21]} fxe4 {[%emt 0:01:30]} 51. Rxe4 {[%emt 0:01:46]} Rxe4 {[%emt 0:00:48]} 52. Nxe4+ {[%emt 0:00:17]} Kg7 {[%emt 0:00:30]} 53. Kf1 {[%emt 0:02:41]} Bxd5 {[%emt 0:00:19]} 54. Nxd6 {[%emt 0:00:03]} Bg2+ {[%emt 0:00:20]} 55. Kxg2 {[%emt 0:00:01]} Rxe1 {[%emt 0:00:08]} 56. Be4 {[%emt 0:01:47]} c3 {[%emt 0:00:18]} 57. f5 {[%emt 0:00:52]} Rxe4 {[%emt 0:00:27] Check Result:-#14} 58. f6+ {[%emt 0:00:38]} 0-1

[Event "FIDE World Junior U20-ch Girls 2025"]
[Site "Petrovac"]
[Date "2025.03.03"]
[Round "7.30"]
[White "Blokhin, Sofia"]
[Black "Djerroud, Chahrazed"]
[Result "1-0"]
[Annotator "NA RC"]
[ECO "C25"]
[WhiteElo "2020"]
[BlackElo "1914"]
[PlyCount "47"]
[EventDate "2025.02.23"]
[EventType "swiss"]
[EventCountry "MNE"]
[SourceTitle "playchess.com"]
[Source "ChessBase"]
[SourceQuality "1"]
[TimeControl "40/5400+30:1800+30"]

1. e4 {[%emt 0:00:02]} e5 {[%emt 0:00:11]} 2. Nc3 {[%emt 0:00:06]} Bc5 {[%emt 0:00:39]} 3. Nf3 {[%emt 0:00:08]} Nc6 {[%emt 0:01:17]} 4. Nxe5 {[%emt 0:05:05]} Nxe5 {[%emt 0:01:17]} 5. d4 {[%emt 0:00:06]} Bd6 {[%emt 0:00:04]} 6. dxe5 {[%emt 0:00:07]} Bxe5 {[%emt 0:00:02]} 7. Qd3 {[%emt 0:06:51]} g6 {[%emt 0:10:06]} 8. Be3 {[%emt 0:01:44]} d6 {[%emt 0:01:14]} 9. f4 {[%emt 0:04:53]} Bg7 {[%emt 0:01:25]} 10. O-O-O {[%emt 0:01:18]} Bd7 {[%emt 0:02:58]} 11. Be2 {[%emt 0:03:01]} Bc6 {[%emt 0:02:55]} 12. Bf3 {[%emt 0:03:05]} Ne7 {[%emt 0:01:50]} 13. Bd4 {[%emt 0:04:41]} Bxd4 {[%emt 0:04:52]} 14. Qxd4 {[%emt 0:00:07]} O-O {[%emt 0:03:40]} 15. h4 {[%emt 0:05:08]} f5 {[%emt 0:01:20]} 16. Qc4+ {[%emt 0:04:52]} Rf7 {[%emt 0:05:53]} 17. h5 {[%emt 0:05:15]} fxe4 {[%emt 0:01:57]} 18. hxg6 {[%emt 0:00:19]} Nxg6 {[%emt 0:04:21]} 19. Bxe4 {[%emt 0:04:19]} Qf6 {[%emt 0:06:12]} 20. Nd5 {[%emt 0:04:18]} Qg7 {[%emt 0:00:15]} 21. Bxg6 {[%emt 0:02:14]} hxg6 {[%emt 0:00:44]} 22. Ne7+ {[%emt 0:03:29]} Kf8 {[%emt 0:00:21]} 23. Rh8+ {[%emt 0:01:51]} Kxe7 {[%emt 0:01:15]} 24. Re1+ {[%emt 0:00:16]} 1-0

[Event "FIDE World Junior U20-ch Girls 2025"]
[Site "Petrovac"]
[Date "2025.03.03"]
[Round "7.31"]
[White "Guo, Hanxi"]
[Black "Hernandez, Lexie Grace"]
[Result "1/2-1/2"]
[Annotator "NA COMBH"]
[ECO "B13"]
[WhiteElo "1854"]
[BlackElo "1892"]
[PlyCount "199"]
[EventDate "2025.02.23"]
[EventType "swiss"]
[EventCountry "MNE"]
[SourceTitle "playchess.com"]
[Source "ChessBase"]
[SourceQuality "1"]
[TimeControl "40/5400+30:1800+30"]

1. e4 {[%emt 0:00:05]} c6 {[%emt 0:00:50]} 2. d4 {[%emt 0:00:10]} d5 {[%emt 0:00:04]} 3. exd5 {[%emt 0:00:16]} cxd5 {[%emt 0:00:04]} 4. c4 {[%emt 0:00:07]} Nf6 {[%emt 0:00:03]} 5. Nc3 {[%emt 0:00:37]} Nc6 {[%emt 0:00:41]} 6. Bg5 {[%emt 0:00:42]} Be6 {[%emt 0:08:24]} 7. a3 {[%emt 0:06:45]} g6 {[%emt 0:02:14]} 8. Bxf6 {[%emt 0:02:05]} exf6 {[%emt 0:00:06]} 9. cxd5 {[%emt 0:01:39]} Bxd5 {[%emt 0:00:06]} 10. Qe2+ {[%emt 0:03:37]} Ne7 {[%emt 0:00:13]} 11. Nxd5 {[%emt 0:01:00]} Qxd5 {[%emt 0:02:50]} 12. Qb5+ {[%emt 0:00:13]} Qxb5 {[%emt 0:01:39]} 13. Bxb5+ {[%emt 0:00:05]} Kd8 {[%emt 0:00:02]} 14. Bc4 {[%emt 0:02:12]} Nf5 {[%emt 0:00:29]} 15. Bxf7 {[%emt 0:01:59]} Ke7 {[%emt 0:00:09]} 16. Bd5 {[%emt 0:04:19]} Bg7 {[%emt 0:02:03]} 17. Nf3 {[%emt 0:25:36]} Rhd8 {[%emt 0:00:22]} 18. Bxb7 {[%emt 0:03:31]} Rab8 {[%emt 0:00:04]} 19. Bc6 {[%emt 0:01:40]} Rxb2 {[%emt 0:02:08]} 20. d5 {[%emt 0:01:01]} Kd6 {[%emt 0:01:04]} 21. O-O {[%emt 0:00:49]} Ne7 {[%emt 0:00:49]} 22. Rfe1 {[%emt 0:07:49]} Nxc6 {[%emt 0:02:00]} 23. dxc6 {[%emt 0:00:14]} Kxc6 {[%emt 0:01:02]} 24. Rac1+ {[%emt 0:02:37]} Kd7 {[%emt 0:00:59]} 25. h3 {[%emt 0:08:31]} Bf8 {[%emt 0:05:40]} 26. Rc3 {[%emt 0:05:40]} Rb6 {[%emt 0:01:18]} 27. Rd1+ {[%emt 0:00:43]} Rd6 {[%emt 0:00:16]} 28. Rb1 {[%emt 0:08:06]} Ke6 {[%emt 0:01:06]} 29. Re1+ {[%emt 0:03:15]} Kf7 {[%emt 0:01:27]} 30. Kf1 {[%emt 0:01:52]} Rd3 {[%emt 0:00:31]} 31. Rc7+ {[%emt 0:01:23]} R8d7 {[%emt 0:00:09]} 32. Rxd7+ {[%emt 0:00:35]} Rxd7 {[%emt 0:00:02]} 33. a4 {[%emt 0:00:36]} Bc5 {[%emt 0:01:24]} 34. Rc1 {[%emt 0:02:41]} Rd5 {[%emt 0:00:14]} 35. Ke2 {[%emt 0:01:03]} Bb6 {[%emt 0:00:20]} 36. Rc4 {[%emt 0:01:01]} Ke6 {[%emt 0:00:44]} 37. Rc6+ {[%emt 0:02:44]} Rd6 {[%emt 0:00:47]} 38. Rc2 {[%emt 0:01:22]} Kd5 {[%emt 0:00:31]} 39. Kd3 {[%emt 0:00:39]} Rc6 {[%emt 0:00:28]} 40. Rb2 {[%emt 0:00:39]} Rc4 {[%emt 0:00:59]} 41. Rb5+ {[%emt 0:01:43]} Bc5 {[%emt 0:03:32]} 42. Nd2 {[%emt 0:02:04]} Rd4+ {[%emt 0:02:58]} 43. Kc3 {[%emt 0:02:07]} Rxa4 {[%emt 0:00:37]} 44. Nb3 {[%emt 0:00:23]} Rc4+ {[%emt 0:00:04]} 45. Kd3 {[%emt 0:00:25]} h6 {[%emt 0:00:54]} 46. Ra5 {[%emt 0:01:45]} h5 {[%emt 0:00:30]} 47. g3 {[%emt 0:08:13]} g5 {[%emt 0:01:09]} 48. f3 {[%emt 0:02:05]} a6 {[%emt 0:01:05]} 49. f4 {[%emt 0:06:37]} gxf4 {[%emt 0:01:03]} 50. gxf4 {[%emt 0:00:05]} f5 {[%emt 0:00:02]} 51. Nxc5 {[%emt 0:04:37]} Rxc5 {[%emt 0:00:08]} 52. Rxa6 {[%emt 0:00:07]} Rb5 {[%emt 0:00:25]} 53. Ra3 {[%emt 0:00:47]} h4 {[%emt 0:03:43]} 54. Ke3 {[%emt 0:00:32]} Rb1 {[%emt 0:01:02]} 55. Ra5+ {[%emt 0:00:31]} Ke6 {[%emt 0:00:04]} 56. Ra6+ {[%emt 0:00:48]} Kf7 {[%emt 0:00:01]} 57. Ra7+ {[%emt 0:01:43]} Kg6 {[%emt 0:00:02]} 58. Ra6+ {[%emt 0:00:18]} Kh5 {[%emt 0:00:06]} 59. Ra3 {[%emt 0:00:51]} Rb2 {[%emt 0:00:49]} 60. Kd4 {[%emt 0:04:08]} Re2 {[%emt 0:00:02]} 61. Rf3 {[%emt 0:00:39]} Kg6 {[%emt 0:00:25]} 62. Kd3 {[%emt 0:00:31]} Rh2 {[%emt 0:00:26]} 63. Kd4 {[%emt 0:00:24]} Kf6 {[%emt 0:00:10]} 64. Rc3 {[%emt 0:00:36]} Rd2+ {[%emt 0:00:05]} 65. Ke3 {[%emt 0:00:21]} Rg2 {[%emt 0:00:06]} 66. Rc6+ {[%emt 0:00:21]} Ke7 {[%emt 0:00:19]} 67. Rh6 {[%emt 0:00:48]} Rg3+ {[%emt 0:00:30]} 68. Kf2 {[%emt 0:00:07]} Rxh3 {[%emt 0:00:04]} 69. Rh7+ {[%emt 0:00:54]} Ke6 {[%emt 0:00:03]} 70. Rh5 {[%emt 0:00:19]} Ra3 {[%emt 0:00:25]} 71. Rxh4 {[%emt 0:00:30]} Kd5 {[%emt 0:00:06]} 72. Rh8 {[%emt 0:00:39]} Ke4 {[%emt 0:00:03]} 73. Rb8 {[%emt 0:00:13]} Ra2+ {[%emt 0:00:07]} 74. Kg3 {[%emt 0:00:32]} Ra3+ {[%emt 0:00:01]} 75. Kf2 {[%emt 0:00:07]} Rd3 {[%emt 0:00:52]} 76. Rb4+ {[%emt 0:00:33]} Rd4 {[%emt 0:00:49]} 77. Rb3 {[%emt 0:00:23]} Kxf4 {[%emt 0:00:43]} 78. Ke2 {[%emt 0:00:06]} Ra4 {[%emt 0:00:19]} 79. Kf2 {[%emt 0:00:33]} Ra2+ {[%emt 0:00:04]} 80. Kf1 {[%emt 0:00:21]} Kg4 {[%emt 0:00:03]} 81. Rc3 {[%emt 0:00:12]} f4 {[%emt 0:00:05]} 82. Rb3 {[%emt 0:00:03]} Rh2 {[%emt 0:00:43]} 83. Ra3 {[%emt 0:00:19]} Rh1+ {[%emt 0:00:20]} 84. Kf2 {[%emt 0:00:36]} Rh2+ {[%emt 0:00:35]} 85. Kf1 {[%emt 0:00:07]} Rc2 {[%emt 0:00:03]} 86. Rb3 {[%emt 0:00:07]} Rc7 {[%emt 0:00:06]} 87. Kf2 {[%emt 0:00:30]} Re7 {[%emt 0:00:09]} 88. Ra3 {[%emt 0:00:08]} Rb7 {[%emt 0:00:11]} 89. Rc3 {[%emt 0:00:07]} Rb4 {[%emt 0:00:03]} 90. Ra3 {[%emt 0:00:12]} Re4 {[%emt 0:00:22]} 91. Rb3 {[%emt 0:00:18]} Ra4 {[%emt 0:00:05]} 92. Rc3 {[%emt 0:00:07]} f3 {[%emt 0:00:07]} 93. Rc8 {[%emt 0:00:11]} Ra2+ {[%emt 0:00:05]} 94. Kf1 {[%emt 0:00:05]} f2 {[%emt 0:00:23]} 95. Rg8+ {[%emt 0:00:23]} Kf4 {[%emt 0:00:08]} 96. Rf8+ {[%emt 0:00:04]} Ke3 {[%emt 0:00:04]} 97. Re8+ {[%emt 0:00:03]} Kd4 {[%emt 0:00:04]} 98. Re2 {[%emt 0:00:14]} Rxe2 {[%emt 0:00:04]} 99. Kxe2 {[%emt 0:00:04]} Ke5 {[%emt 0:00:03] Check Result:0.00} 100. Kxf2 {[%emt 0:00:34]} 1/2-1/2

[Event "FIDE World Junior U20-ch Girls 2025"]
[Site "Petrovac"]
[Date "2025.03.03"]
[Round "7.32"]
[White "Shohradova, Lala"]
[Black "Khuslen, Erdenebayar"]
[Result "0-1"]
[Annotator "RC"]
[ECO "A57"]
[WhiteElo "2025"]
[BlackElo "2201"]
[PlyCount "90"]
[EventDate "2025.02.23"]
[EventType "swiss"]
[EventCountry "MNE"]
[SourceTitle "playchess.com"]
[Source "ChessBase"]
[SourceQuality "1"]
[TimeControl "40/5400+30:1800+30"]

1. d4 {[%emt 0:00:03]} Nf6 {[%emt 0:00:06]} 2. c4 {[%emt 0:00:04]} c5 {[%emt 0:00:10]} 3. d5 {[%emt 0:00:05]} b5 {[%emt 0:00:08]} 4. cxb5 {[%emt 0:00:18]} a6 {[%emt 0:00:07]} 5. e3 {[%emt 0:00:09]} e6 {[%emt 0:00:16]} 6. Nc3 {[%emt 0:02:46]} exd5 {[%emt 0:00:25]} 7. Nxd5 {[%emt 0:04:09]} Bb7 {[%emt 0:00:29]} 8. Nxf6+ {[%emt 0:10:49]} Qxf6 {[%emt 0:00:10]} 9. Nf3 {[%emt 0:01:08]} Be7 {[%emt 0:01:54]} 10. bxa6 {[%emt 0:07:48]} Rxa6 {[%emt 0:10:50]} 11. Bxa6 {[%emt 0:04:26]} Bxa6 {[%emt 0:00:06]} 12. Bd2 {[%emt 0:00:20]} Qg6 {[%emt 0:03:24]} 13. Bc3 {[%emt 0:04:27]} O-O {[%emt 0:05:28]} 14. Qd2 {[%emt 0:21:56]} Nc6 {[%emt 0:06:33]} 15. a3 {[%emt 0:13:23]} d5 {[%emt 0:07:55]} 16. Ne5 {[%emt 0:06:37]} Nxe5 {[%emt 0:02:13]} 17. Bxe5 {[%emt 0:00:02]} Qe4 {[%emt 0:00:48]} 18. Bf4 {[%emt 0:04:12]} Qxg2 {[%emt 0:09:42]} 19. O-O-O {[%emt 0:00:08]} Rd8 {[%emt 0:01:49]} 20. Rhg1 {[%emt 0:05:54]} Qe4 {[%emt 0:00:11]} 21. Bh6 {[%emt 0:02:15]} g6 {[%emt 0:03:38]} 22. Qa5 {[%emt 0:02:23]} Bc8 {[%emt 0:07:03]} 23. Qc3 {[%emt 0:00:39]} d4 {[%emt 0:01:47]} 24. Qc2 {[%emt 0:01:30]} Qh4 {[%emt 0:03:18]} 25. Bf4 {[%emt 0:00:18]} Be6 {[%emt 0:02:23]} 26. Be5 {[%emt 0:04:34]} Kf8 {[%emt 0:06:16]} 27. e4 {[%emt 0:01:17]} Qh5 {[%emt 0:02:02]} 28. f4 {[%emt 0:00:11]} f6 {[%emt 0:00:55]} 29. Bc7 {[%emt 0:00:12]} Rc8 {[%emt 0:02:22]} 30. f5 {[%emt 0:00:22]} gxf5 {[%emt 0:00:58]} 31. Bf4 {[%emt 0:00:25]} Qh4 {[%emt 0:08:02]} 32. Rdf1 {[%emt 0:00:10]} c4 {[%emt 0:01:41]} 33. exf5 {[%emt 0:01:18]} c3 {[%emt 0:02:12]} 34. Qe4 {[%emt 0:02:03]} cxb2+ {[%emt 0:08:39]} 35. Kb1 {[%emt 0:00:00]} Bb3 {[%emt 0:00:23]} 36. Qb7 {[%emt 0:01:09]} Bc2+ {[%emt 0:00:34]} 37. Kxb2 {[%emt 0:00:01]} Bxf5 {[%emt 0:00:06]} 38. Qd5 {[%emt 0:00:46]} Bg6 {[%emt 0:00:33]} 39. Bd6 {[%emt 0:01:02]} Rc2+ {[%emt 0:01:04]} 40. Ka1 {[%emt 0:00:01]} Re2 {[%emt 0:02:28]} 41. Rb1 {[%emt 0:16:13]} Kg7 {[%emt 0:06:44]} 42. Qb7 {[%emt 0:10:25]} Qf2 {[%emt 0:01:43]} 43. Qd5 {[%emt 0:05:20]} Bxd6 {[%emt 0:00:11]} 44. Rb7+ {[%emt 0:00:40]} Kh6 {[%emt 0:01:41]} 45. Rc1 {[%emt 0:00:53]} Be5 {[%emt 0:00:47]} 0-1

[Event "FIDE World Junior U20-ch Girls 2025"]
[Site "Petrovac"]
[Date "2025.03.03"]
[Round "7.33"]
[White "Karacsonyi, Kata"]
[Black "Sneha Halder"]
[Result "1-0"]
[Annotator "RC"]
[ECO "B12"]
[WhiteElo "2191"]
[BlackElo "2065"]
[PlyCount "121"]
[EventDate "2025.02.23"]
[EventType "swiss"]
[EventCountry "MNE"]
[SourceTitle "playchess.com"]
[Source "ChessBase"]
[SourceQuality "1"]
[TimeControl "40/5400+30:1800+30"]

1. e4 {[%emt 0:00:51]} c6 {[%emt 0:02:49]} 2. d4 {[%emt 0:00:20]} d5 {[%emt 0:00:02]} 3. e5 {[%emt 0:00:07]} Bf5 {[%emt 0:00:06]} 4. Bd3 {[%emt 0:00:09]} Bxd3 {[%emt 0:00:05]} 5. Qxd3 {[%emt 0:00:04]} e6 {[%emt 0:00:06]} 6. Ne2 {[%emt 0:00:08]} Nd7 {[%emt 0:00:09]} 7. c3 {[%emt 0:00:32]} c5 {[%emt 0:00:12]} 8. Nd2 {[%emt 0:00:32]} Ne7 {[%emt 0:01:16]} 9. O-O {[%emt 0:01:02]} Nc6 {[%emt 0:00:45]} 10. Qg3 {[%emt 0:00:35]} g6 {[%emt 0:00:48]} 11. Nf3 {[%emt 0:03:46]} Be7 {[%emt 0:01:46]} 12. h4 {[%emt 0:07:02]} Qb6 {[%emt 0:04:38]} 13. Qf4 {[%emt 0:10:56]} h6 {[%emt 0:04:36]} 14. Rb1 {[%emt 0:04:18]} Qa6 {[%emt 0:02:28]} 15. Re1 {[%emt 0:06:18]} Qd3 {[%emt 0:03:31]} 16. Be3 {[%emt 0:02:42]} g5 {[%emt 0:01:43]} 17. hxg5 {[%emt 0:04:52]} hxg5 {[%emt 0:01:01]} 18. Nxg5 {[%emt 0:01:16]} Qg6 {[%emt 0:00:11]} 19. Ng3 {[%emt 0:03:14]} cxd4 {[%emt 0:02:22]} 20. cxd4 {[%emt 0:14:25]} Nb4 {[%emt 0:01:06]} 21. Red1 {[%emt 0:02:04]} Nd3 {[%emt 0:03:02]} 22. Qxf7+ {[%emt 0:01:16]} Qxf7 {[%emt 0:00:08]} 23. Nxf7 {[%emt 0:00:04]} Kxf7 {[%emt 0:01:37]} 24. Rxd3 {[%emt 0:00:06]} Rac8 {[%emt 0:04:33]} 25. Rc1 {[%emt 0:05:42]} Nb6 {[%emt 0:05:37]} 26. b3 {[%emt 0:06:10]} Ba3 {[%emt 0:05:00]} 27. Rxc8 {[%emt 0:01:33]} Rxc8 {[%emt 0:00:21]} 28. f4 {[%emt 0:04:10]} Kg6 {[%emt 0:02:37]} 29. Kf2 {[%emt 0:01:22]} Rc2+ {[%emt 0:07:52]} 30. Rd2 {[%emt 0:00:06]} Rc6 {[%emt 0:01:33]} 31. Re2 {[%emt 0:05:17]} Na8 {[%emt 0:03:09]} 32. Nf1 {[%emt 0:01:38]} Nc7 {[%emt 0:00:43]} 33. Nd2 {[%emt 0:04:13]} Nb5 {[%emt 0:04:00]} 34. Nb1 {[%emt 0:00:21]} Bc1 {[%emt 0:00:16]} 35. a4 {[%emt 0:06:30]} Bxe3+ {[%emt 0:00:51]} 36. Kxe3 {[%emt 0:00:05]} Rc1 {[%emt 0:01:41]} 37. Rb2 {[%emt 0:01:41]} Nc3 {[%emt 0:20:00]} 38. Kd2 {[%emt 0:00:08]} Rxb1 {[%emt 0:00:02]} 39. Rxb1 {[%emt 0:02:30]} Nxb1+ {[%emt 0:00:01]} 40. Kc2 {[%emt 0:00:09]} Kf5 {[%emt 0:00:52]} 41. g3 {[%emt 0:02:39]} Na3+ {[%emt 0:04:32]} 42. Kb2 {[%emt 0:00:06]} Ke4 {[%emt 0:00:18]} 43. Kxa3 {[%emt 0:03:27]} Kxd4 {[%emt 0:00:45]} 44. f5 {[%emt 0:16:09]} Kxe5 {[%emt 0:00:11]} 45. fxe6 {[%emt 0:00:04]} Kxe6 {[%emt 0:00:10]} 46. Kb4 {[%emt 0:00:26]} Ke5 {[%emt 0:04:50]} 47. Kc3 {[%emt 0:00:05]} Ke4 {[%emt 0:01:15]} 48. Kd2 {[%emt 0:00:06]} Kf3 {[%emt 0:09:24]} 49. Kd3 {[%emt 0:00:08]} Kxg3 {[%emt 0:02:52]} 50. b4 {[%emt 0:04:04]} Kf3 {[%emt 0:05:33]} 51. b5 {[%emt 0:01:11]} Kf2 {[%emt 0:06:54]} 52. a5 {[%emt 0:00:49]} a6 {[%emt 0:05:16]} 53. b6 {[%emt 0:00:07]} Ke1 {[%emt 0:00:04]} 54. Kd4 {[%emt 0:00:05]} Kd2 {[%emt 0:00:03]} 55. Kxd5 {[%emt 0:00:08]} Kc3 {[%emt 0:00:02]} 56. Kd6 {[%emt 0:00:13]} Kb4 {[%emt 0:00:16]} 57. Kc7 {[%emt 0:00:05]} Kxa5 {[%emt 0:00:13]} 58. Kxb7 {[%emt 0:00:06]} Kb5 {[%emt 0:00:05]} 59. Kc7 {[%emt 0:00:09]} a5 {[%emt 0:00:02]} 60. b7 {[%emt 0:00:03]} Ka4 {[%emt 0:00:05]} 61. b8=Q {[%emt 0:00:08]} 1-0

[Event "FIDE World Junior U20-ch Girls 2025"]
[Site "Petrovac"]
[Date "2025.03.03"]
[Round "7.35"]
[White "Beber, Anja"]
[Black "Cornileau, Juliette"]
[Result "1/2-1/2"]
[Annotator "NA"]
[ECO "D01"]
[WhiteElo "1988"]
[BlackElo "2144"]
[PlyCount "77"]
[EventDate "2025.02.23"]
[EventType "swiss"]
[EventCountry "MNE"]
[SourceTitle "playchess.com"]
[Source "ChessBase"]
[SourceQuality "1"]
[TimeControl "40/5400+30:1800+30"]

1. d4 {[%emt 0:00:05]} Nf6 {[%emt 0:01:28]} 2. Nc3 {[%emt 0:00:51]} d5 {[%emt 0:00:46]} 3. Bf4 {[%emt 0:00:10]} e6 {[%emt 0:03:21]} 4. Nb5 {[%emt 0:00:37]} Na6 {[%emt 0:01:55]} 5. e3 {[%emt 0:00:16]} c6 {[%emt 0:06:05]} 6. Nc3 {[%emt 0:00:07]} Nb8 {[%emt 0:11:54]} 7. a3 {[%emt 0:22:11]} Bd6 {[%emt 0:04:06]} 8. Nf3 {[%emt 0:00:28]} O-O {[%emt 0:11:47]} 9. Bd3 {[%emt 0:00:13]} Bxf4 {[%emt 0:00:40]} 10. exf4 {[%emt 0:00:02]} b6 {[%emt 0:00:27]} 11. Ne5 {[%emt 0:09:16]} c5 {[%emt 0:02:36]} 12. Qf3 {[%emt 0:06:21]} Ba6 {[%emt 0:05:09]} 13. O-O {[%emt 0:14:25]} Bxd3 {[%emt 0:07:37]} 14. Qxd3 {[%emt 0:02:24]} a6 {[%emt 0:05:45]} 15. Rfe1 {[%emt 0:04:30]} Qc7 {[%emt 0:02:28]} 16. Ne2 {[%emt 0:15:48]} Nbd7 {[%emt 0:09:54]} 17. c3 {[%emt 0:00:00]} c4 {[%emt 0:03:03]} 18. Qe3 {[%emt 0:02:32]} b5 {[%emt 0:00:57]} 19. Ng3 {[%emt 0:00:31]} g6 {[%emt 0:10:38]} 20. h4 {[%emt 0:09:37]} a5 {[%emt 0:02:37]} 21. h5 {[%emt 0:02:05]} Ra6 {[%emt 0:01:40]} 22. f3 {[%emt 0:04:58]} Rb6 {[%emt 0:03:00]} 23. f5 {[%emt 0:02:26]} exf5 {[%emt 0:00:14]} 24. Qg5 {[%emt 0:00:10]} Qd8 {[%emt 0:01:37]} 25. Nxf5 {[%emt 0:00:48]} Nxe5 {[%emt 0:01:21]} 26. Rxe5 {[%emt 0:01:08]} Nxh5 {[%emt 0:01:31]} 27. Qxd8 {[%emt 0:01:17]} Rxd8 {[%emt 0:00:02]} 28. Ne7+ {[%emt 0:00:08]} Kg7 {[%emt 0:01:18]} 29. Nxd5 {[%emt 0:00:14]} Rb7 {[%emt 0:00:20]} 30. Rae1 {[%emt 0:01:10]} Nf6 {[%emt 0:00:41]} 31. Nxf6 {[%emt 0:00:17]} Kxf6 {[%emt 0:00:01]} 32. Rc5 {[%emt 0:00:35]} Rd6 {[%emt 0:00:35]} 33. Re2 {[%emt 0:00:37]} Re6 {[%emt 0:00:38]} 34. Rd2 {[%emt 0:00:25]} Rd6 {[%emt 0:00:35]} 35. a4 {[%emt 0:00:15]} Rdb6 {[%emt 0:00:29]} 36. axb5 {[%emt 0:00:41]} Rxb5 {[%emt 0:00:01]} 37. Rxc4 {[%emt 0:00:09]} Rxb2 {[%emt 0:00:07]} 38. Rxb2 {[%emt 0:00:11]} Rxb2 {[%emt 0:00:02]} 39. Ra4 {[%emt 0:00:28]} 1/2-1/2

[Event "FIDE World Junior U20-ch Girls 2025"]
[Site "Petrovac"]
[Date "2025.03.03"]
[Round "7.36"]
[White "Xu, Luna Yuexiu"]
[Black "Valcu, Lavinia"]
[Result "1/2-1/2"]
[Annotator "NA COMBH"]
[ECO "B75"]
[WhiteElo "1903"]
[BlackElo "2137"]
[PlyCount "82"]
[EventDate "2025.02.23"]
[EventType "swiss"]
[EventCountry "MNE"]
[SourceTitle "playchess.com"]
[Source "ChessBase"]
[SourceQuality "1"]
[TimeControl "40/5400+30:1800+30"]

1. e4 {[%emt 0:00:01]} c5 {[%emt 0:02:10]} 2. Nf3 {[%emt 0:00:31]} d6 {[%emt 0:00:07]} 3. d4 {[%emt 0:00:15]} cxd4 {[%emt 0:00:04]} 4. Nxd4 {[%emt 0:00:49]} Nf6 {[%emt 0:00:07]} 5. Nc3 {[%emt 0:00:45]} g6 {[%emt 0:00:09]} 6. Be3 {[%emt 0:02:42]} Bg7 {[%emt 0:00:13]} 7. f3 {[%emt 0:02:11]} a6 {[%emt 0:00:19]} 8. Qd2 {[%emt 0:02:53]} h5 {[%emt 0:00:15]} 9. Nd5 {[%emt 0:01:32]} Nbd7 {[%emt 0:12:24]} 10. c4 {[%emt 0:06:13]} O-O {[%emt 0:03:16]} 11. Be2 {[%emt 0:01:09]} Ne5 {[%emt 0:08:45]} 12. O-O {[%emt 0:03:59]} Bd7 {[%emt 0:02:42]} 13. b4 {[%emt 0:02:46]} h4 {[%emt 0:09:23]} 14. Rac1 {[%emt 0:04:14]} h3 {[%emt 0:00:53]} 15. g3 {[%emt 0:02:15]} Nh7 {[%emt 0:09:37]} 16. Nb3 {[%emt 0:02:17]} Bc6 {[%emt 0:05:44]} 17. Bb6 {[%emt 0:02:44]} Qd7 {[%emt 0:00:48]} 18. f4 {[%emt 0:02:18]} Ng4 {[%emt 0:07:42]} 19. Bxg4 {[%emt 0:04:43]} Qxg4 {[%emt 0:00:06]} 20. Nxe7+ {[%emt 0:00:32]} Kh8 {[%emt 0:00:06]} 21. Nxc6 {[%emt 0:00:42]} bxc6 {[%emt 0:00:10]} 22. Qxd6 {[%emt 0:04:53]} Qe2 {[%emt 0:01:27]} 23. Rf2 {[%emt 0:02:22]} Qxe4 {[%emt 0:00:15]} 24. Bd4 {[%emt 0:00:26]} Rad8 {[%emt 0:06:42]} 25. Bxg7+ {[%emt 0:00:41]} Kxg7 {[%emt 0:00:15]} 26. Qe5+ {[%emt 0:01:34]} Qxe5 {[%emt 0:00:14]} 27. fxe5 {[%emt 0:00:28]} Ng5 {[%emt 0:00:10]} 28. Na5 {[%emt 0:06:27]} Rc8 {[%emt 0:07:25]} 29. c5 {[%emt 0:01:56]} Rfe8 {[%emt 0:00:00]} 30. Re1 {[%emt 0:03:36]} Re6 {[%emt 0:00:00]} 31. Nc4 {[%emt 0:03:00]} Rce8 {[%emt 0:00:00]} 32. Re3 {[%emt 0:01:19]} Kh6 {[%emt 0:00:43]} 33. Ra3 {[%emt 0:10:05]} Rd8 {[%emt 0:07:45]} 34. Kf1 {[%emt 0:04:23]} Rd4 {[%emt 0:02:16]} 35. Rf4 {[%emt 0:00:48]} Rd1+ {[%emt 0:02:38]} 36. Ke2 {[%emt 0:00:48]} Rh1 {[%emt 0:00:06]} 37. Rxa6 {[%emt 0:03:00]} Rxh2+ {[%emt 0:00:10]} 38. Rf2 {[%emt 0:00:14]} Rh1 {[%emt 0:01:26]} 39. Rf1 {[%emt 0:00:55]} Rh2+ {[%emt 0:00:42]} 40. Rf2 {[%emt 0:00:15]} Rh1 {[%emt 0:01:22]} 41. Rf1 {[%emt 0:31:16] Check Result:0.00} Rh2+ {[%emt 0:30:33]} 1/2-1/2